bitfinex/quotes_ETHUSD_20251128
["timestamp","ask_amount","ask_price","bid_price","bid_amount"]
[1764367950682,38.27460137,3037.5,3037.4,0.001]
[1764367951398,37.28459737,3037.5,3037.4,0.001]
[1764367951774,37.76909737,3037.5,3037.4,0.001]
[1764367953005,37.86909737,3037.5,3037.4,0.001]
[1764367953612,14.75672837,3037.5,3037.4,0.001]
[1764367953791,37.86909737,3037.5,3037.4,0.001]
[1764367955312,14.75672837,3037.5,3037.4,0.001]
[1764367955910,37.86909737,3037.5,3037.4,0.001]
[1764367959604,43.25447788,3037.5,3037.4,0.001]
[1764367960187,43.35447788,3037.5,3037.4,0.001]
[1764367960788,35.14153637,3037.5,3037.4,0.001]
[1764367960991,37.33645637,3037.5,3037.4,0.001]
[1764367962013,15.06223237,3037.5,3037.4,0.001]
[1764367962197,37.37425737,3037.5,3037.4,0.001]
[1764367963189,38.08032137,3037.5,3037.4,0.001]
[1764367963494,0.002,3037.9,3037.6,6.099117]
[1764367963712,0.002,3037.9,3037.8,6.92471111]
[1764367964216,0.002,3037.9,3037.8,10.21656705]
[1764367964588,0.002,3037.9,3037.8,10.3484238]
[1764367967222,0.002,3038.2,3038.1,7.33021511]
[1764367967422,0.002,3039.4,3038.2,1.13109811]
[1764367967725,0.002,3039.4,3039.3,0.505504]
[1764367967926,0.002,3039.4,3039.3,6.51997462]
[1764367968223,0.002,3039.4,3039.3,7.17197208]
[1764367968425,0.002,3039.8,3039.4,1.13109811]
[1764367968608,0.002,3039.8,3039.7,14.97429584]
[1764367968814,0.002,3039.8,3039.7,15.69988995]
[1764367969727,0.002,3039.8,3039.7,15.29438595]
[1764367970026,0.002,3039.8,3039.7,3.0130156]
[1764367970229,0.002,3039.8,3039.7,4.11539244]
[1764367974126,0.002,3039.8,3039.7,4.32339244]
[1764367974921,0.002,3039.8,3039.7,4.45517317]
[1764367977449,0.002,3039.8,3039.7,4.48807115]
[1764367977653,0.002,3039.8,3039.7,4.89357515]
[1764367977821,0.002,3039.8,3039.7,12.14003109]
[1764367978027,0.002,3039.8,3039.7,12.10713311]
[1764367980108,0.002,3039.8,3039.7,11.89913311]
[1764367980450,0.002,3039.8,3039.7,6.00801611]
[1764367980625,0.002,3039.8,3039.7,12.14003109]
[1764367980950,0.002,3039.8,3039.7,12.10713311]
[1764367982160,0.002,3039.8,3039.7,6.00801611]
[1764367982365,0.002,3039.8,3039.7,12.10713311]
[1764367984385,0.002,3039.8,3039.7,11.89913311]
[1764367984552,0.002,3039.8,3039.7,12.10713311]
[1764367986769,0.002,3039.8,3039.7,11.97535238]
[1764367987177,0.002,3039.8,3039.7,5.87623538]
[1764367989582,0.002,3039.8,3039.7,5.77623538]
[1764367989781,0.002,3039.8,3039.7,5.87623538]
[1764367990255,0.002,3039.8,3039.7,4.53713727]
[1764367990451,0.002,3039.8,3039.7,4.77803525]
[1764367990689,0.002,3039.8,3039.7,5.50362936]
[1764367991113,0.002,3039.8,3039.4,0.001]
[1764367991114,0.6582,3039.8,3039.4,0.001]
[1764367991407,0.3027877,3039.7,3039.4,0.001]
[1764367991556,0.7954877,3039.6,3039.4,0.101]
[1764367991760,0.7645877,3039.5,3039.4,3.39112305]
[1764367991988,0.7645877,3039.5,3039.4,0.001]
[1764367992171,1.2572877,3039.5,3039.4,0.001]
[1764367993790,1.2572877,3039.5,3039.0,0.001]
[1764367993791,11.224126,3039.4,3039.0,0.001]
[1764367993976,11.224126,3039.4,3038.7,0.001]
[1764367993977,7.669449,3039.0,3038.7,0.001]
[1764367994177,8.291198,3038.8,3038.7,0.001]
[1764367994560,6.1831877,3038.8,3037.2,0.001]
[1764367994721,6.70674,3038.6,3037.6,0.1]
[1764367995010,0.6562,3037.5,3037.2,0.001]
[1764367995216,0.9589877,3037.5,3037.2,0.001]
[1764367995519,1.4262877,3037.5,3037.2,0.001]
[1764367995868,4.71846876,3037.5,3037.2,0.001]
[1764367996414,1.4262877,3037.5,3037.2,0.001]
[1764367996611,4.71846876,3037.5,3037.2,0.001]
[1764367998207,1.4262877,3037.5,3037.2,0.001]
[1764367998417,18.4395397,3037.5,3037.2,0.001]
[1764367998622,21.73172076,3037.5,3037.2,0.001]
[1764367998824,21.33891676,3037.5,3037.2,0.001]
[1764367999426,4.71846876,3037.5,3037.2,0.001]
[1764367999580,10.04540476,3037.5,3037.2,0.001]
[1764367999779,7.46705076,3037.5,3037.2,0.001]
[1764368000488,15.94595476,3037.5,3037.2,0.001]
[1764368000689,1.4262877,3037.5,3037.2,0.001]
[1764368000895,7.0949337,3037.5,3037.2,0.001]
[1764368001408,10.38711476,3037.5,3037.2,0.001]
[1764368001607,12.07707376,3037.5,3037.2,0.001]
[1764368001808,13.63360824,3037.5,3037.2,0.001]
[1764368002513,14.02116524,3037.5,3037.2,0.001]
[1764368002721,11.93011824,3037.5,3037.2,0.001]
[1764368003015,11.57383224,3037.5,3037.2,0.001]
[1764368003220,4.52278442,3037.5,3037.2,0.001]
[1764368003423,7.81496548,3037.5,3037.2,0.001]
[1764368003723,15.32547948,3037.5,3037.2,0.001]
[1764368004612,17.61073248,3037.5,3037.2,0.001]
[1764368004790,17.36113848,3037.5,3037.2,0.001]
[1764368005124,19.44735016,3037.5,3037.2,0.001]
[1764368005317,17.22344016,3037.5,3037.2,0.001]
[1764368005817,17.47352578,3037.5,3037.2,0.001]
[1764368006120,16.47352578,3037.5,3037.2,0.001]
[1764368006326,14.85868978,3037.5,3037.2,0.001]
[1764368006622,18.16681578,3037.5,3037.2,0.001]
[1764368006787,17.86884378,3037.5,3037.2,0.001]
[1764368007587,7.13409078,3037.5,3037.2,0.001]
[1764368007791,5.0478791,3037.5,3037.2,0.001]
[1764368008010,15.81986811,3037.5,3037.2,0.001]
[1764368008331,16.66606421,3037.5,3037.2,0.001]
[1764368008624,19.34658506,3037.5,3037.2,0.001]
[1764368008992,25.87275006,3037.5,3037.2,0.001]
[1764368009194,29.12441247,3037.5,3037.2,0.001]
[1764368009495,29.12363325,3037.5,3037.2,0.001]
[1764368009929,12.11038125,3037.5,3037.2,0.001]
[1764368010094,29.12363325,3037.5,3037.2,0.001]
[1764368010920,12.11038125,3037.5,3037.2,0.001]
[1764368011123,28.28744863,3037.5,3037.2,0.001]
[1764368011310,28.61812925,3037.5,3037.2,0.001]
[1764368011512,28.71812925,3037.5,3037.2,0.001]
[1764368014720,28.71845897,3037.5,3037.2,0.001]
[1764368015635,28.61845897,3037.5,3037.2,0.001]
[1764368016019,15.90128097,3037.5,3037.2,0.001]
[1764368016228,25.46679656,3037.5,3037.2,0.001]
[1764368017233,25.77230056,3037.5,3037.2,0.001]
[1764368017538,25.87230056,3037.5,3037.2,0.001]
[1764368017718,26.04436987,3037.5,3037.2,0.001]
[1764368018118,9.03111787,3037.5,3037.2,0.001]
[1764368018307,27.9561547,3037.5,3037.2,0.001]
[1764368021160,27.9561547,3037.5,3037.0,0.001]
[1764368021161,0.869704,3037.2,3037.0,0.001]
[1764368021364,1.60459811,3037.4,3035.1,3.29773901]
[1764368021365,0.405504,3036.8,3035.1,3.29773901]
[1764368021545,0.33068062,3036.2,3035.1,3.29773901]
[1764368021725,6.08938162,3036.0,3035.1,3.29773901]
[1764368021909,5.328955,3035.8,3035.1,3.29773901]
[1764368022114,0.51006792,3035.7,3035.1,6.59252336]
[1764368022310,0.30106792,3035.6,3035.2,0.006]
[1764368022529,0.30106792,3035.5,3035.2,0.67555234]
[1764368022821,0.30106792,3035.4,3035.2,0.67555234]
[1764368023028,0.209,3035.7,3035.2,0.006]
[1764368023029,0.30106792,3035.3,3035.2,0.006]
[1764368023642,0.30106792,3035.3,3035.2,0.012]
[1764368024521,0.30106792,3035.3,3035.2,3.3066758]
[1764368025011,0.30106792,3035.3,3035.2,0.006]
[1764368025211,1.44776792,3035.3,3034.4,0.006]
[1764368025540,0.30106792,3035.2,3034.5,0.006]
[1764368025846,0.30106792,3035.1,3034.5,0.006]
[1764368026043,0.30106792,3035.0,3034.5,0.006]
[1764368026239,0.30106792,3034.9,3034.5,0.006]
[1764368026550,0.30106792,3034.8,3034.5,0.006]
[1764368026747,0.30106792,3034.7,3034.6,3.29532722]
[1764368026949,0.30106792,3034.7,3034.6,3.95500326]
[1764368027121,0.30106792,3034.7,3034.6,3.96100326]
[1764368027322,0.30106792,3034.7,3034.6,3.96700326]
[1764368030851,0.30106792,3034.7,3034.6,4.09995653]
[1764368031019,0.30106792,3034.7,3034.6,3.96100326]
[1764368031224,0.30106792,3034.7,3034.6,3.96700326]
[1764368033724,0.30106792,3034.7,3034.6,3.99995653]
[1764368037654,0.30106792,3034.7,3034.6,3.96700326]
[1764368037839,0.30106792,3034.7,3034.6,3.99995653]
[1764368038759,0.30106792,3034.7,3034.6,4.69259737]
[1764368039888,0.30106792,3034.7,3034.6,3.96700326]
[1764368040090,0.30106792,3034.7,3034.6,3.30132722]
[1764368040367,0.30395833,3034.7,3034.6,3.30132722]
[1764368043834,0.30395833,3034.7,3034.5,0.001]
[1764368044136,0.30395833,3034.6,3034.5,0.03395435]
[1764368044532,0.30395833,3034.6,3034.5,0.03995435]
[1764368044731,0.30395833,3034.6,3034.5,3.33537327]
[1764368044956,0.30395833,3034.6,3034.5,3.66892133]
[1764368046152,0.30395833,3034.6,3034.5,3.67492133]
[1764368050255,0.30395833,3034.6,3034.5,3.77492133]
[1764368051270,0.30395833,3034.6,3034.5,3.66892133]
[1764368051769,0.30395833,3034.6,3034.5,3.67492133]
[1764368052076,0.30395833,3034.6,3034.5,3.77492133]
[1764368052846,0.30395833,3034.6,3034.5,3.66892133]
[1764368053175,0.30395833,3034.6,3034.5,3.77492133]
[1764368053860,0.30553277,3034.6,3034.5,3.67492133]
[1764368054057,0.30553277,3034.6,3034.5,3.66892133]
[1764368054371,0.30553277,3034.6,3034.5,3.77492133]
[1764368056341,0.30553277,3034.6,3034.5,3.67492133]
[1764368056794,0.30553277,3034.6,3034.5,3.77492133]
[1764368058092,0.30553277,3034.6,3034.5,3.66892133]
[1764368058292,0.30553277,3034.6,3034.5,3.63596698]
[1764368059244,0.30553277,3034.6,3034.5,3.30241892]
[1764368061476,0.30553277,3034.6,3034.5,0.001]
[1764368061477,0.78433277,3034.6,3034.5,0.001]
[1764368061659,1.24903277,3034.6,3034.5,0.001]
[1764368064453,4.54435999,3034.6,3034.5,0.001]
[1764368064647,1.24903277,3034.6,3034.5,0.001]
[1764368065179,4.54435999,3034.6,3034.5,0.001]
[1764368065557,5.34920923,3034.6,3034.5,0.001]
[1764368068552,2.05388201,3034.6,3034.5,0.001]
[1764368068754,4.87504061,3034.6,3034.5,0.001]
[1764368069286,1.24903277,3034.6,3034.5,0.001]
[1764368070056,4.54435999,3034.6,3034.5,0.001]
[1764368070988,1.24903277,3034.6,3034.5,0.001]
[1764368071361,0.30553277,3034.6,3034.5,0.001]
[1764368071666,1.24903277,3034.6,3034.5,0.001]
[1764368074893,0.78433277,3034.6,3034.5,0.001]
[1764368075190,4.55215999,3034.6,3034.5,0.001]
[1764368075685,1.25683277,3034.6,3034.5,0.001]
[1764368075891,5.36107809,3034.6,3034.5,0.001]
[1764368076288,5.3940281,3034.6,3034.5,0.001]
[1764368076963,22.73796072,3034.6,3034.5,0.001]
[1764368077288,22.80501071,3034.6,3034.5,0.001]
[1764368077598,22.70501071,3034.6,3034.5,0.001]
[1764368078388,17.36356671,3034.6,3034.5,0.001]
[1764368079665,5.69175871,3034.6,3034.5,0.001]
[1764368079867,22.73796072,3034.6,3034.5,0.001]
[1764368080070,22.70501071,3034.6,3034.5,0.001]
[1764368081271,22.37433009,3034.6,3034.5,0.001]
[1764368081467,22.80501071,3034.6,3034.5,0.001]
[1764368082299,22.80501071,3034.6,3033.8,0.001]
[1764368082300,0.72559411,3033.4,3031.9,0.008]
[1764368082476,2.001608,3033.2,3032.2,0.1]
[1764368082795,0.72559411,3033.6,3031.9,0.1]
[1764368082796,4.463789,3033.0,3031.9,0.1]
[1764368082997,0.97133277,3032.9,3031.9,0.108]
[1764368083199,0.30553277,3032.8,3031.9,0.108]
[1764368083491,0.30553277,3032.8,3032.0,6.59630606]
[1764368083492,0.51453277,3032.7,3032.0,6.59630606]
[1764368083693,0.30553277,3032.6,3032.1,0.67043061]
[1764368083895,0.30553277,3032.5,3032.1,0.67043061]
[1764368084095,0.30553277,3032.4,3032.1,0.67043061]
[1764368084265,0.30553277,3032.3,3032.1,0.67043061]
[1764368084467,0.30553277,3032.2,3032.1,0.67043061]
[1764368084865,0.30553277,3032.2,3032.1,0.67843061]
[1764368085291,0.209,3032.7,3032.2,3.29793549]
[1764368085473,0.303346,3032.6,3032.2,3.29793549]
[1764368085674,0.512346,3032.5,3032.3,0.01652825]
[1764368085885,0.303346,3032.4,3032.3,0.01652825]
[1764368086096,0.303346,3032.4,3032.3,0.75481123]
[1764368086416,0.209,3032.6,3032.3,0.76281123]
[1764368086596,0.30320327,3032.5,3032.3,0.74628298]
[1764368086805,0.209,3032.6,3032.3,0.74628298]
[1764368086988,0.209,3032.6,3032.5,0.008]
[1764368087303,0.51216466,3032.6,3032.5,0.008]
[1764368087676,0.51216466,3032.6,3032.5,3.30560923]
[1764368088010,0.51216466,3032.6,3032.5,0.008]
[1764368088507,0.51216466,3032.6,3032.0,0.008]
[1764368088719,0.30316466,3032.5,3032.2,0.1]
[1764368089004,0.209,3032.6,3032.5,0.008]
[1764368089210,0.51197372,3032.6,3032.5,0.008]
[1764368089677,0.30297372,3032.6,3032.5,3.30560923]
[1764368089882,0.209,3032.7,3032.5,0.108]
[1764368090106,0.209,3032.7,3032.6,0.008]
[1764368090413,0.51192622,3032.7,3032.6,0.008]
[1764368092211,1.00692622,3032.7,3032.4,3.31423316]
[1764368092512,0.495,3032.5,3031.8,0.1]
[1764368092708,0.495,3032.3,3031.8,0.1]
[1764368093014,0.51192622,3032.2,3031.8,0.1]
[1764368093204,0.51192622,3032.2,3031.7,0.1]
[1764368093205,0.30292622,3032.1,3031.7,0.1]
[1764368093512,0.6815,3032.2,3031.7,0.1]
[1764368093712,0.30272593,3032.1,3031.7,0.1]
[1764368093902,0.6815,3032.2,3031.7,0.1]
[1764368094084,0.30272596,3032.1,3031.7,0.1]
[1764368094286,0.30272596,3032.0,3031.7,0.1]
[1764368094485,0.6815,3032.2,3031.8,3.2983706]
[1764368094707,0.30264739,3032.1,3031.8,3.2983706]
[1764368094880,0.30264739,3032.0,3031.8,3.2983706]
[1764368095087,0.6815,3032.2,3031.9,0.01654022]
[1764368095287,0.30264752,3032.1,3031.9,0.01654022]
[1764368095486,0.30264752,3032.0,3031.9,0.01654022]
[1764368096014,0.30264752,3032.0,3031.9,0.02454022]
[1764368096406,0.30264752,3032.0,3031.9,3.32280203]
[1764368097695,0.30264752,3032.0,3031.9,0.02454022]
[1764368098207,0.209,3032.2,3031.9,0.108]
[1764368098383,0.3025271,3032.1,3031.9,0.108]
[1764368098587,0.209,3032.2,3031.9,3.40626181]
[1764368098588,0.3025271,3032.0,3031.9,3.40626181]
[1764368098805,0.3025271,3032.0,3031.9,3.39826181]
[1764368099111,0.3025271,3032.0,3031.9,3.40626181]
[1764368100418,0.7975271,3032.0,3031.8,0.01654076]
[1764368100648,1.2700271,3031.9,3031.1,0.1]
[1764368100806,1.0065271,3031.8,3031.2,0.01655382]
[1764368101127,1.0065271,3031.8,3029.6,0.008]
[1764368101128,0.6883,3030.9,3029.6,0.008]
[1764368101289,1.4790271,3030.8,3030.4,0.0016]
[1764368101488,1.4790271,3030.8,3029.6,0.008]
[1764368101489,0.3025271,3030.7,3030.2,0.1]
[1764368101692,0.3025271,3030.6,3029.8,0.1]
[1764368101910,0.704,3030.8,3029.3,0.0012857]
[1764368101911,0.6883,3029.9,3029.3,0.0012857]
[1764368102223,0.6883,3029.9,3026.2,0.05]
[1764368102224,9.446937,3025.9,3024.9,2.94631922]
[1764368102390,0.3854,3025.5,3024.2,0.4617]
[1764368102593,0.68699286,3025.5,3024.4,0.4617]
[1764368102790,1.15669286,3025.5,3024.4,0.4617]
[1764368102991,5.89190413,3025.5,3024.4,0.1]
[1764368103185,2.30982984,3024.6,3024.5,0.01673877]
[1764368103411,2.30982984,3024.6,3024.4,0.1]
[1764368103412,0.69295774,3024.6,3024.4,0.1]
[1764368103607,2.8872873,3024.6,3024.5,0.4946]
[1764368103808,3.57635681,3024.6,3024.5,0.4946]
[1764368104126,0.68906951,3024.6,3024.5,0.5946]
[1764368104503,3.54965024,3024.6,3024.5,0.5946]
[1764368104893,0.68906951,3024.6,3024.5,3.90093162]
[1764368105120,2.86058073,3025.1,3024.6,1.70749411]
[1764368105319,2.94422864,3026.7,3025.0,10.62188948]
[1764368105524,1.82612216,3028.2,3025.7,0.1]
[1764368105525,1.71449542,3025.8,3025.7,0.1]
[1764368105819,3.2562,3027.8,3026.9,0.1]
[1764368106120,0.29773367,3027.7,3027.0,0.215]
[1764368106321,0.29773367,3027.8,3027.0,0.215]
[1764368106893,3.60046344,3027.8,3027.1,0.215]
[1764368107222,3.60046344,3027.8,3024.3,1.189]
[1764368107223,0.4738,3027.2,3026.4,0.215]
[1764368107399,0.4738,3027.2,3026.5,0.215]
[1764368107602,0.4738,3027.2,3026.5,0.315]
[1764368108000,0.4738,3027.2,3026.5,0.1]
[1764368108205,0.78939497,3027.1,3026.3,0.215]
[1764368108493,0.72559411,3027.7,3026.0,0.1]
[1764368108494,0.4926,3027.7,3026.4,0.315]
[1764368108823,0.29680259,3027.6,3026.4,0.315]
[1764368109028,6.65330719,3027.4,3025.8,0.215]
[1764368109325,3.06029011,3027.2,3026.3,0.1]
[1764368109535,0.29680259,3027.1,3026.3,0.1]
[1764368109895,0.78940259,3027.1,3026.3,0.215]
[1764368110112,0.4926,3027.1,3026.3,0.215]
[1764368110325,0.29634341,3027.0,3026.3,0.215]
[1764368110526,0.6611,3026.4,3024.9,0.72559411]
[1764368110695,0.1873,3026.9,3026.0,0.1]
[1764368110907,0.1873,3026.9,3026.1,0.215]
[1764368112231,0.1873,3026.9,3026.3,0.1]
[1764368112432,0.1873,3026.9,3026.1,0.215]
[1764368112433,0.4926,3027.8,3026.4,0.405504]
[1764368112650,0.29623539,3027.7,3026.7,3.30392837]
[1764368112945,0.04128001,3028.1,3027.2,0.1]
[1764368113100,0.04128001,3028.1,3026.8,0.72559411]
[1764368113101,0.04128001,3028.1,3027.3,0.215]
[1764368113300,0.04128001,3028.1,3027.4,0.315]
[1764368113525,0.04128001,3028.1,3027.4,0.1]
[1764368113737,0.04128001,3028.1,3027.5,0.215]
[1764368113941,0.9368178,3028.1,3027.5,0.215]
[1764368114141,0.9368178,3028.1,3027.3,0.215]
[1764368114314,0.53388001,3028.1,3027.6,0.1]
[1764368114515,0.53388001,3028.1,3027.5,0.1]
[1764368114718,0.1933,3028.2,3027.5,0.1]
[1764368115032,0.1933,3028.2,3027.7,0.1]
[1764368116446,3.49560861,3028.2,3027.7,0.1]
[1764368116639,3.95778725,3028.2,3027.7,0.1]
[1764368116806,4.64168413,3028.2,3027.5,0.1]
[1764368117002,4.64168413,3028.2,3027.6,0.215]
[1764368117003,0.65547864,3028.2,3027.6,0.215]
[1764368117203,3.95777127,3028.2,3027.6,0.215]
[1764368117939,0.65547864,3028.2,3027.7,0.215]
[1764368118114,0.6142,3028.2,3027.7,0.215]
[1764368118321,0.18457864,3028.2,3027.7,0.215]
[1764368118525,0.1433,3028.2,3027.7,0.215]
[1764368119255,0.04127728,3028.3,3027.7,0.215]
[1764368119419,3.64044613,3028.3,3027.7,0.57680407]
[1764368119619,0.29695794,3028.2,3027.7,0.215]
[1764368119922,0.04128001,3028.1,3027.7,0.215]
[1764368121079,2.055386,3027.7,3027.0,0.215]
[1764368121353,0.33844551,3027.6,3027.0,0.215]
[1764368121842,0.33844551,3027.6,3027.1,0.215]
[1764368121843,0.51218682,3027.6,3027.1,0.215]
[1764368122061,0.29715869,3027.5,3025.7,0.72559411]
[1764368122217,0.4851,3026.8,3025.8,0.73789013]
[1764368122415,0.29715869,3026.7,3025.6,0.1]
[1764368122611,0.29715869,3026.7,3025.3,0.215]
[1764368122612,0.39715869,3026.6,3025.2,3.40556657]
[1764368122816,0.29715869,3026.5,3025.3,0.215]
[1764368123022,6.90567045,3026.4,3025.3,0.94059411]
[1764368123231,0.29715869,3026.3,3025.3,4.03101492]
[1764368123418,0.29715869,3026.2,3025.1,0.1]
[1764368123630,0.29715869,3026.2,3025.0,0.215]
[1764368123631,0.29715869,3026.1,3025.2,0.1]
[1764368123918,0.29715869,3026.0,3025.2,0.1]
[1764368124223,0.29796264,3025.9,3025.5,0.1]
[1764368124430,5.0,3026.0,3025.5,0.1]
[1764368124745,0.29796257,3025.9,3025.5,0.1]
[1764368124913,5.0,3026.0,3025.9,0.05]
[1764368125117,5.0,3026.0,3025.9,0.15]
[1764368125351,5.298299,3026.0,3025.9,0.15]
[1764368125657,5.298299,3026.0,3025.7,0.215]
[1764368125957,5.0,3026.0,3025.9,0.15]
[1764368126126,5.29835238,3026.0,3025.9,0.15]
[1764368126834,5.0,3026.0,3025.9,0.2]
[1764368127144,0.1929,3026.9,3025.9,10.01440561]
[1764368127452,0.29880219,3026.8,3026.2,0.1]
[1764368127643,0.29880219,3026.7,3026.3,0.215]
[1764368127843,0.29880219,3026.6,3026.4,0.1]
[1764368128153,0.29880219,3026.5,3026.4,0.1]
[1764368128654,0.29880219,3026.5,3026.4,0.15]
[1764368128956,3.49880219,3026.5,3026.4,3.45425588]
[1764368129128,3.49880219,3026.5,3026.4,4.15161801]
[1764368130931,3.49880219,3026.5,3026.4,4.20161801]
[1764368131327,3.49880219,3026.5,3026.4,4.92721212]
[1764368131559,0.29880219,3026.5,3026.4,4.92721212]
[1764368133261,0.29880219,3026.5,3026.4,5.33271612]
[1764368133479,0.29880219,3026.5,3026.4,5.66071612]
[1764368133644,0.29880219,3026.5,3026.4,5.33271612]
[1764368133956,0.29880219,3026.5,3026.4,5.66071612]
[1764368134739,0.4709,3028.0,3027.6,0.1]
[1764368134959,0.04127728,3028.3,3027.6,0.1]
[1764368135163,0.04127728,3028.3,3027.5,0.215]
[1764368135164,0.53977728,3028.3,3027.8,0.1]
[1764368135531,0.4985,3028.1,3027.9,3.30261897]
[1764368136360,0.23417592,3028.4,3027.9,3.30261897]
[1764368136758,0.5005,3028.2,3027.9,3.30261897]
[1764368137056,0.5005,3028.2,3027.8,3.30268018]
[1764368137868,0.5005,3028.2,3027.6,6.60585539]
[1764368138249,0.04128001,3028.1,3027.6,6.59188289]
[1764368138660,0.4985,3028.0,3027.6,6.59188289]
[1764368139440,0.1965,3027.9,3027.6,6.59188289]
[1764368139662,0.002,3028.2,3027.6,6.59188289]
[1764368139865,0.002,3028.2,3027.6,6.69188289]
[1764368140243,0.5005,3028.2,3027.6,6.69188289]
[1764368141368,0.002,3028.2,3027.6,7.38257118]
[1764368141544,0.002,3028.2,3027.9,0.1]
[1764368141741,0.002,3028.2,3028.0,3.3025099]
[1764368141950,0.002,3028.2,3028.0,3.5165099]
[1764368143464,0.5005,3028.2,3028.0,3.5165099]
[1764368144169,0.5005,3028.2,3028.0,6.8190198]
[1764368144369,0.002,3028.2,3028.0,6.8190198]
[1764368144560,0.002,3028.2,3028.1,0.1]
[1764368146085,0.002,3028.2,3028.1,4.09470282]
[1764368146286,0.002,3028.2,3028.1,4.19470282]
[1764368146790,0.30478499,3028.2,3028.1,4.19470282]
[1764368149261,0.30478499,3028.2,3028.1,3.71680084]
[1764368149790,0.75838499,3028.2,3028.1,3.51640084]
[1764368150292,0.75838499,3028.2,3028.1,3.61640084]
[1764368150654,0.30478499,3028.2,3028.1,3.61640084]
[1764368151778,1.25688499,3028.2,3028.1,3.51640084]
[1764368151998,0.75838499,3028.2,3027.5,3.30305532]
[1764368152283,0.80128499,3028.1,3027.8,0.1]
[1764368152451,0.30278499,3028.0,3027.9,0.1]
[1764368152656,0.75638499,3028.0,3027.9,0.1]
[1764368152975,0.30278499,3028.0,3027.9,0.1]
[1764368153178,0.30278499,3028.0,3027.9,0.1502]
[1764368153481,0.30278499,3028.0,3027.9,0.3642]
[1764368153782,0.30278499,3028.0,3027.9,3.71701897]
[1764368153977,0.30278499,3028.0,3027.9,4.36879292]
[1764368154377,0.002,3028.2,3027.9,4.36879292]
[1764368154378,0.002,3028.2,3027.9,7.67141189]
[1764368154679,0.002,3028.2,3028.1,0.883704]
[1764368154995,0.002,3028.2,3028.1,1.097704]
[1764368155195,0.002,3028.2,3028.1,1.147904]
[1764368155354,0.002,3028.2,3028.1,2.065975]
[1764368155557,0.002,3028.2,3028.1,5.36837584]
[1764368155754,0.002,3028.2,3028.1,6.09396995]
[1764368156854,0.002,3028.6,3028.1,6.09396995]
[1764368156855,0.002,3028.6,3028.2,1.13109811]
[1764368157093,0.002,3028.6,3028.5,7.13150719]
[1764368157259,0.002,3028.6,3028.5,7.39570719]
[1764368157450,0.002,3028.6,3028.5,8.5268053]
[1764368157655,0.002,3028.6,3028.5,11.82876996]
[1764368158068,0.1965,3030.2,3029.9,0.1]
[1764368158386,0.1965,3030.2,3030.1,0.1]
[1764368160656,0.75635407,3031.4,3030.9,0.214]
[1764368160889,0.23772691,3032.0,3030.9,0.214]
[1764368160890,1.25485407,3031.3,3030.9,0.214]
[1764368161182,0.9521,3031.3,3031.2,0.1]
[1764368162063,0.23772691,3032.0,3031.3,0.1]
[1764368162064,0.4985,3031.7,3031.3,0.1]
[1764368162252,0.1965,3032.0,3031.4,0.214]
[1764368162457,0.30199208,3031.9,3031.4,0.214]
[1764368162657,0.1965,3032.0,3031.4,0.214]
[1764368162658,0.1965,3032.0,3031.8,0.1]
[1764368162863,0.1965,3032.0,3031.9,0.1]
[1764368163065,0.49850645,3032.0,3031.9,0.1]
[1764368163390,0.49850645,3032.0,3031.4,0.214]
[1764368163391,0.4536,3032.0,3031.8,0.1]
[1764368163590,0.30163647,3032.1,3032.0,0.1]
[1764368163969,1.25373647,3032.1,3032.0,3.39815303]
[1764368164180,0.9521,3032.1,3032.0,3.39815303]
[1764368164381,0.4536,3032.1,3032.0,3.39815303]
[1764368164690,0.1965,3032.2,3031.8,3.29835577]
[1764368164870,0.3425801,3032.5,3032.0,0.1]
[1764368165073,0.04121196,3033.1,3031.8,6.59672637]
[1764368165287,0.34260005,3033.0,3031.8,3.29835577]
[1764368165482,2.521633,3032.8,3031.8,3.39835577]
[1764368165670,0.7141528,3032.9,3031.8,3.39835577]
[1764368165671,3.6400441,3032.7,3031.8,3.39835577]
[1764368165877,0.1955,3031.9,3031.8,0.1]
[1764368166099,0.6623,3031.9,3031.8,0.314]
[1764368166264,1.1504,3031.9,3031.8,3.61232279]
[1764368167876,1.1504,3031.9,3031.8,0.314]
[1764368168582,4.44868422,3031.9,3031.4,0.213]
[1764368168786,0.97419805,3031.8,3031.4,0.213]
[1764368168966,0.97419805,3031.8,3031.1,3.29912382]
[1764368168967,0.4668,3031.5,3031.1,3.29912382]
[1764368169162,0.4668,3031.2,3031.1,3.29912382]
[1764368169367,0.4668,3031.2,3031.1,3.51212382]
[1764368169568,0.9549,3031.2,3031.0,3.29920178]
[1764368169785,0.4668,3031.1,3031.0,3.51220178]
[1764368170592,0.9549,3031.1,3031.0,3.51220178]
[1764368171591,0.4668,3031.1,3031.0,3.51220178]
[1764368171987,0.4881,3031.4,3031.0,6.81144295]
[1764368172188,0.4881,3031.4,3031.0,6.81143034]
[1764368172368,0.4881,3031.4,3031.0,3.51218917]
[1764368172568,0.4668,3031.1,3031.0,3.51218917]
[1764368173797,0.9549,3031.1,3031.0,3.51218917]
[1764368174885,0.4881,3031.6,3031.0,6.81143034]
[1764368175202,0.4588,3031.6,3031.0,6.81143034]
[1764368175379,0.4588,3032.3,3031.5,0.0502]
[1764368175589,0.4588,3032.8,3031.9,0.1]
[1764368175783,0.30092276,3032.7,3032.1,0.1]
[1764368175996,3.51014874,3033.0,3032.1,0.1]
[1764368175997,0.4843,3032.2,3032.1,0.1]
[1764368176190,0.4843,3032.2,3032.1,3.39804425]
[1764368176479,0.4588,3032.6,3032.2,0.1]
[1764368176681,0.002,3032.3,3032.1,6.8090885]
[1764368176896,0.002,3032.3,3032.2,0.1]